{"text_format":"1","workbook":"xlsx","n_sheets":6,"sheets":["Startseite","Stammdaten","AUKM","Ökoregelungen","Prämienübersicht","Prämiensätze"],"not_rendered":{"charts":0,"images":3,"macros":1,"external_links":0,"defined_names":4,"comments":0,"pivot_tables":0},"unopened":[],"bounds":{"document_bytes":16777216,"sheet_cells":100000,"rows_first":2000,"rows_last":500,"rows_between":2000,"halvings":0,"cell_chars":16384,"cell_head_chars":4096},"cells_cut":0,"cells_raw":0,"read":"whole","date_system":"1900"}

{"sheet":"Startseite","index":0,"n_rows":26,"n_cols":8,"rows_kept":26,"cut":false,"hidden":false,"merged":[]}
["Willkommen beim Prämienrechner des DLR RNH"]
[]
["Die in dem Rechner genannten Prämiensätze stehen alle unter Vorbehalt bzgl. der Genehmigung des GAP-Strategieplans bzw. der EU-Komission."]
["Dieser Rechner stellt die Prämiensätze mit Kenntnisstand des 01.04.2025 dar."]
["Das DLR RNH übernimmt keine Gewährleistung für die errechneten Prämien."]
[]
["Weitergehende Informationen zu den AUKM (GAP-SP-Programmen) finden Sie unter: ",null,null,null,null,null,null,"https://www.agrarumwelt.rlp.de/"]
["Weitergehende Informationen zur Konditonalität und den Ökoregelungen finden Sie unter: ",null,null,null,null,null,null,"https://add.rlp.de/de/themen/foerderungen/in-der-landwirtschaft-agrarfoerderungen/direktzahlungen-ab-2023/"]
["Bitte beachten Sie: Die dargestelllten Kombinerbarkeiten und Prämien beziehen sich immer auf die neue Förderperiode und stellen nicht die Kombinierbarkeit bzw. die Prämien aus laufenden EULLa-Altverträgen dar!"]
[]
["Bitte füllen Sie den Rechner wie folgt aus:"]
["1. Tabellenblatt \"Stammdaten\" ausfüllen"]
["2. Tabellenblätter \"Ökoregelungen\" und \"AUKM\" auswählen"]
["3. Bitte beachten Sie die Anmerkungen in der Spalte \"Infobox\"!"]
["4. Auf dem Tabellenblatt \"Prämienübersicht\" sehen Sie die Prämien für die von Ihnen ausgewählten Maßnahmen. "]
[]
["Wichtig ist, dass die Stammdaten während des Berechnens nicht mehr verändert werden, da dies zu Fehlern in der Berechnung führen könnte."]
["Wollen Sie mit anderen Stammdaten starten, steht Ihnen auf der rechten Seite des Tabellenblatts Stammdaten die Schaltfläche \"Zurücksetzen\" zur Verfügung, die alle Zahleneingabefelder der Datei zurücksetzt."]
["Die Felder sind wie folgt auszufüllen:"]
[]
[]
[]
[]
[]
[]
["©"]

{"sheet":"Stammdaten","index":1,"n_rows":24,"n_cols":19,"rows_kept":24,"cut":false,"hidden":false,"merged":[]}
["Betriebsstammdaten",null,null,null,null,null,null,null,null,null,null,null,"Komplett","Ja"]
["Berechnungsjahr",2025,null,null,null,null,null,null,null,null,null,null,"Teilweise","Nein"]
["Name","Mustermann",null,null,null,null,null,null,null,null,null,null,"Nein","Teilweise"]
["Ort","Bad Kreuznach"]
[null,null,null,null,null,null,null,null,null,null,null,null,"Ausnahme",{"$f":"IF(M6=1,1,IF(M7=1,1,0))","v":1}]
["Ackerland in ha ",null,null,null,null,null,null,null,null,null,null,null,{"$f":"IF(B6<10,1,0)","v":1}]
[" davon Gemüsebau in ha",null,null,null,null,null,null,null,null,null,null,null,{"$f":"IF((B10+B8)>B13*0.75,1,0)","v":0}]
["davon Ackerfutter (inkl. UAG-Flächen) in ha",null,null,null,null,null,null,null,null,null,null,null,{"$f":"IF((B9+B8)>B6*0.75,1,0)","v":0}]
["davon Leguminosen/Brachen in ha"]
["Dauergrünland in ha"]
["Weinbau in ha",null,null,null,null,null,null,null,null,null,null,null,null,null,null,null,null,"Gesamtdauerkulturen",{"$f":"B11+B12","v":0}]
["Obstbau in ha"]
["Gesamte LF-Fläche",{"$f":"SUM(B6,B10:B12)","v":0}]
[]
["Benachteiligtes Gebiet?","Nein"]
["Bei Teilweise, wieviel Fläche befindet sich im benachteiligten Gebiet?"]
["Junglandwirt?","Nein"]
[]
["Beantragen Sie die Ökoprämie?","Nein"]
["In der Umstellungsphase?","Nein"]
[]
["Gekoppelte Tierprämien","Nein"]
["Anzahl der Mutterkühe"]
["Anzahl der Schafe und Ziegen \n(mindestens 10 Monate alt)",null,null,null,null,null,null,null,null,null,null,null,null,null,null,null,null,null,{"$f":"IF(Stammdaten!C19=\"Ja\",WENN)","v":false}]

{"sheet":"AUKM","index":2,"n_rows":81,"n_cols":5,"rows_kept":81,"cut":false,"hidden":false,"merged":[]}
["Agrarumwelt- und Klimamaßnahmen (GAP-SP)",null,null,null,"Infobox"]
[]
[{"$f":"Stammdaten!B3","v":"Mustermann"}]
[{"$f":"Stammdaten!B4","v":"Bad Kreuznach"}]
[]
["Maßnahmen in der Landwirtschaft"]
[null,null,"Prämie je ha"]
["Umwandlung Acker in Grünland","Nein",445,null,{"$f":"IF(B8=\"Ja\",IF(Stammdaten!B19=\"Ja\",\"Bitte beachten Sie: Für die beantragten UAG-Flächen erhalten Sie keine Ökoprämie!\",\"\"),\"\")","v":""}]
["Fläche in ha"]
["Saum- und Bandstrukturen","Nein","690-780 €",null,{"$f":"IF(B10=\"Ja\",IF(Stammdaten!B19=\"Ja\",\"Bitte beachten Sie: Für die beantragten SaBa-Flächen erhalten Sie keine Ökoprämie!\",\"\"),\"\")","v":""}]
["Fläche mit mehrjähriger Neueinsaat in ha",null,780,null,{"$f":"IF((B11+B12)>Stammdaten!B6*0.2,\"Bitte beachten Sie: Sie dürfen nicht mehr als 20 % Ihrer Ackerfläche ins SaBa-Programm einbringen! Bei mehr als 20 % wird Ihnen in der Prämienübersicht keine Prämie angezeigt!\",\"\")","v":""}]
["Fläche ohne Neueinsaat in ha",null,690]
["Extensive Grünlandbewirtschaftung","Nein",80,null,{"$f":"IF(B13=\"Ja\",\"Bitte darauf achten auch die ÖR 4 zu beantragen! Ökobetriebe können diese Maßnahme nicht kombinieren!\",\"\")","v":""}]
["Vielfältige Kulturen im Ackerbau","Nein",45,null,{"$f":"IF(B14=\"Ja\",\"Bitte darauf achten auch die ÖR 2 zu beantragen! Ökobetriebe können diese Maßnahme nicht kombinieren!\",\"\")","v":""}]
["Grünlandbewirtschaftung von Talauen in der Südpfalz","Nein",130,null,{"$f":"IF(B15=\"Ja\",IF(Stammdaten!B19=\"Ja\",\"Ökobetriebe können diese Maßnahme nicht kombinieren!\",\"\"),\"\")","v":""}]
["Fläche in ha"]
["Alternative Pflanzenschutzverfahren (Maiszünsler)","Nein",60,null,{"$f":"IF(Stammdaten!$B$19=\"Ja\",\"Sie können dieses Programm nicht mit der ökologischen Wirtschaftsweise kombinieren!\",\"\")","v":""}]
["Maisanbaufläche in ha"]
[]
["Maßnahmen im Vertragsnaturschutz"]
[null,null,"Prämie je ha"]
["Grünland",null,null,null,{"$f":"IF(Ökoregelungen!C24=\"Ja\",\"Bitte beachten Sie die Kombination mit ÖR4. Diese Prämien werden von der VNG-Prämie abgezogen.\",\"\")","v":""}]
["Mähwiesen und Weiden","Nein",225,null,{"$f":"IF(Stammdaten!B19=\"Ja\",\"Bitte beachten Sie: Für die beantragten VNG-Flächen erhalten Sie keine Ökoprämie!\",\"\")","v":""}]
["Fläche in ha"]
["davon im Zusatzmodul: Abw. Bewirtschaftungsvorgaben",null,175]
["davon im Zusatzmodul: Ganzjährige Beweidung",null,220]
["davon im Zusatzmodul: Ein- oder Mehrjährige Brachstrukturen",null,140]
["davon im Zusatzmodul: Zuschlag für erschwerte Bewirtschaftung ",null,50]
["Artenreiches Grünland","Nein",300]
["Fläche in ha"]
["davon im Zusatzmodul: Abw. Bewirtschaftungsvorgaben",null,175]
["davon im Zusatzmodul: Ganzjährige Beweidung",null,220]
["davon im Zusatzmodul: Ein- oder Mehrjährige Brachstrukturen",null,140]
["davon im Zusatzmodul: Zuschlag für erschwerte Bewirtschaftung ",null,50]
["Umwandlung Acker in Artenreiches Grünland","Nein",700]
["Fläche in ha"]
["davon im Zusatzmodul: Ein- oder Mehrjährige Brachstrukturen",null,140]
["davon im Zusatzmodul: Zuschlag für erschwerte Bewirtschaftung ",null,50]
[null,null,null,null,{"$f":"IF(B13=\"Ja\",\"Bitte darauf achten, dass für VNG und VNK Flächen die EULLa-Prämie für die Extensive Grünlandbewirtschaftung nicht gewährt wird.\",\"\")","v":""}]
["Kennarten",null,null,null,{"$f":"IF(Ökoregelungen!C26=\"Ja\",\"Bitte Beachten Sie: Flächen die in der ÖR5 gefördert werden, können nicht an VN Kennarten teilnehmen!\",\"\")","v":""}]
["Mähwiesen und Weiden","Nein",300,null,{"$f":"IF(Stammdaten!B19=\"Ja\",\"Bitte beachten Sie: Für die beantragten VNK-Flächen erhalten Sie keine Ökoprämie!\",\"\")","v":""}]
["Fläche in ha"]
["davon im Zusatzmodul: Ein- oder Mehrjährige Brachstrukturen",null,140]
["davon im Zusatzmodul: Zuschlag für erschwerte Bewirtschaftung ",null,50]
["Artenreiches Grünland","Nein",360]
["Fläche in ha"]
["davon im Zusatzmodul: Ein- oder Mehrjährige Brachstrukturen",null,140]
["davon im Zusatzmodul: Zuschlag für erschwerte Bewirtschaftung ",null,50]
[]
["Acker"]
["Extensivgetreide","Nein",1050,null,{"$f":"IF(Stammdaten!B19=\"Ja\",\"Bitte beachten Sie: Für die beantragten VNA-Flächen erhalten Sie keine Öko-Prämie!\",\"\")","v":""}]
["Fläche in ha"]
["davon im Zusatzmodul: später Stoppelumruch/hohe Stoppel",null,70]
["Mehrjährige Ackerbrache","Nein",800]
["Fläche in ha"]
["davon im Zusatzmodul: später Stoppelumruch/hohe Stoppel",null,70,null,{"$f":"IF(B54=\"Ja\",\"Dieses Zusatzmodul ist nur auf direkt an die Maßnahmenfläche angrenzenden Getreideschlägen möglich!\",\"\")","v":""}]
[]
["Weinberg"]
["Freistellungspflege von Weinbergslagen","Nein",700,null,{"$f":"IF(Stammdaten!B19=\"Ja\",\"Bitte beachten Sie: Für Freistellungs- und Offenhaltungsflächen erhalten Sie keine Ökoprämie!\",\"\")","v":""}]
["Fläche in ha"]
["davon im Zusatzmodul: Zuschlag für erschwerte  Bewirtschaftung ",null,270]
["Offenhaltungspflege von Weinbergslagen","Nein",420]
["Fläche in ha"]
["davon im Zusatzmodul: Zuschlag für erschwerte  Bewirtschaftung ",null,170]
[]
["Streuobst","Nein","je Baum"]
["Altbestandsbäume (Anzahl Bäume)",null,9.5]
["Neuanlagen (Anzahl Bäume)",null,12]
["Sanierungsschnitt (Anzahl Bäume)",null,77]
[]
["Maßnahmen im Weinbau"," ","Prämie je ha"]
[]
["Umweltschonende Steil- und Steilstlagenbewirtschaftung","Nein","765-2555 €",null,{"$f":"IF(Stammdaten!B19=\"Ja\",\"Bitte beachten Sie: Für die beantragten Steil- und Steilstlagenflächen erhalten Sie keine Öko-Prämie!\",\"\")","v":""}]
["Steillagen in ha",null,765,null,{"$f":"IF((B74+B75)>Stammdaten!B11,\"Bitte beachten: Ihre angegebene Fläche ist größer als in den Stammdaten angegeben! In der Prämienübersicht wird Ihnen keine Prämie gewährt!\",\"\")","v":""}]
["Steilstlagen in ha",null,2555]
["Biotechnische Pflanzenschutzverfahren","Nein",80]
[]
["Maßnahme im Obstbau",null,"Prämie je ha"]
[]
["Alternative Pflanzenschutzverfahren (Apfelwickler)","Nein",450,null,{"$f":"IF(Stammdaten!$B$19=\"Ja\",\"Sie können dieses Programm nicht mit der ökologischen Wirtschaftsweise kombinieren!\",\"\")","v":""}]
["Apfelanbaufläche in ha"]

{"sheet":"Ökoregelungen","index":3,"n_rows":34,"n_cols":35,"rows_kept":34,"cut":false,"hidden":false,"merged":[]}
["Ökoregelungen",null,null,null,"Infobox"]
[null,null,null,null,null,null,null,null,null,null,null,null,null,"Prämie"]
[{"$f":"Stammdaten!B3","v":"Mustermann"}]
[{"$f":"Stammdaten!B4","v":"Bad Kreuznach"}]
[null,null,null,null,null,null,null,null,null,null,null,null,null,null,"Ackerfläche",null,{"$f":"Stammdaten!B6","v":0},"Berechnung für kleiner 10 ha und größer 100 ha",null,null,null,null,null,"Berechnung für 10 bis 50 ha",null,null,null,null,null,"Berechnung für 50 bis 100 ha"]
["Ökoregelung 1","Flächen zur Verbesserung der Biodiversität",null,"Prämie",null,null,null,null,null,null,null,null,null,null,null,null,null,null,null,"ÖR 1a","Prämie","Prozent","Berechnung",null,null,"ÖR 1a","Prämie","Prozent","Berechnung",null,null,"ÖR 1a","Prämie","Prozent","Berechnung"]
["1a","Stilllegungsfläche für ÖR 1a","Nein",{"$f":"Prämienübersicht!B13","v":"1300 € (1.%), 500 € (2. %), 300 € (3.-8%)"},null,null,null,null,null,null,null,null,null,null,"Betrieb kleiner 10 ha",10,{"$f":"IF(Q5<P7,1,0)","v":1},"Höchstförderfläche",{"$f":"S9*8","v":0},"1. Prozent",{"$f":"Prämienübersicht!H28","v":1300},0.01,{"$f":"IF(S8>V7,U7*S9,C10*U7)","v":{"$error":"#DIV/0!"}},"Höchstförderfläche",{"$f":"IF(Q5*0.08<1,1,Q5*0.08)","v":1},"1. Prozent",{"$f":"Prämienübersicht!H28","v":1300},0.01,{"$f":"IF(C10<=1,C10*AA7,1*1300)","v":0},"Höchstförderfläche",{"$f":"Q5*0.08","v":0},"1. Prozent",{"$f":"Prämienübersicht!H28","v":1300},0.01,{"$f":"IF(C10<=1,C10*1300,1*1300)","v":0}]
[null,null,null,null,null,null,null,null,null,null,null,null,null,null,"Betrieb 10 bis 50 ha",50,{"$f":"IF(Q5>=P7,IF(Q5<P8,1,0),0)","v":0},"Prozent über GLÖZ 8 hinaus",{"$f":"C10/Q5","v":{"$error":"#DIV/0!"}},"2. Prozent",{"$f":"Prämienübersicht!H29","v":500},0.02,{"$f":"IF(S8>V8,S9*U8,IF(S8<V7,0,(C10-S9)*U8))","v":{"$error":"#DIV/0!"}},"Prozent über GLÖZ 8 hinaus",{"$f":"C10/Q5","v":{"$error":"#DIV/0!"}},"2. Prozent",{"$f":"Prämienübersicht!H29","v":500},0.02,0,"Prozent über GLÖZ 8 hinaus",{"$f":"C10/Q5","v":{"$error":"#DIV/0!"}},"2. Prozent",{"$f":"Prämienübersicht!H29","v":500},0.02,{"$f":"IF(C10<=1,0,IF(C10>AE9*2,(AE9*2-1)*AG8,(C10-1)*AG8))","v":0}]
[null,null,null,null,null,null,null,null,null,null,null,null,null,null,"Betrieb kleiner 100 ha",100,{"$f":"IF(Q5>=P8,IF(Q5<P9,1,0),0)","v":0},"1 % Fläche Ackerland",{"$f":"Q5*0.01","v":0},"3.-8. Prozent",{"$f":"Prämienübersicht!H30","v":300},0.08,{"$f":"IF(S8>V8,IF(C10>S7,S9*6*U9,(C10-2*S9)*U9),0)","v":{"$error":"#DIV/0!"}},"1 % Fläche Ackerland",{"$f":"Q5*0.01","v":0},"3.-8. Prozent",{"$f":"Prämienübersicht!H30","v":300},0.08,{"$f":"IF(C10<1,0,IF(C10>Y7,(Y7-1)*AA9,(C10-1)*AA9))","v":0},"1 % Fläche Ackerland",{"$f":"Q5*0.01","v":0},"3.-8. Prozent",{"$f":"Prämienübersicht!H30","v":300},0.08,{"$f":"IF(C10>2*AE9,IF(C10>AE7,AE9*6*AG9,(C10-2*AE9)*AG9),0)","v":0}]
[null,"beantragte Flächen in ha",null,null,null,null,null,null,null,null,null,null,null,{"$f":"IF(Q8=1,AC10,IF(Q9=1,AI10,W10))","v":{"$error":"#DIV/0!"}},"Betrieb größer 100 ha",null,{"$f":"IF(Q5>=P9,1,0)","v":0},null,null,null,null,null,{"$f":"SUM(W7:W9)","v":{"$error":"#DIV/0!"}},null,null,null,null,null,{"$f":"SUM(AC7:AC9)","v":0},null,null,null,null,null,{"$f":"SUM(AI7:AI9)","v":0}]
["1b","Blühflächen Top-Up auf 1a Flächen","Nein",{"$f":"Prämienübersicht!H31","v":200},null,null,null,null,null,null,null,null,null,{"$f":"IF(C11=\"Komplett\",IF(S8>6%,S9*6*U11,S6*U11),IF(C11=\"Teilweise\",IF(C12>S7,S9*6*U11,C12*U11),0))","v":0},null,null,null,null,null,null,{"$f":"Prämienübersicht!H31","v":200}]
[null,"bei teilweise: Fläche in ha"]
["1c","Blühflächen in Dauerkulturen","Nein",{"$f":"Prämienübersicht!H32","v":200}]
[null,"Fläche in ha",null,null,null,null,null,null,null,null,null,null,null,{"$f":"Prämienübersicht!B15","v":200},null,null,null,null,null,"ÖR 1d","Prämie"]
["1d","Altgrasstreifen","Nein",{"$f":"Prämienübersicht!H33&\" € (1.%), \"&Prämienübersicht!H34&\" € (2. -3.%), \"&Prämienübersicht!H35&\" € (4.-6-%)\"","v":"900 € (1.%), 400 € (2. -3.%), 200 € (4.-6-%)"},{"$f":"IF(C15=\"Ja\",\"Bitte beachten Sie: Es wird nur die Altgrasstreifenfläche gefördert, nicht der gesamte Schlag!\",\"\")","v":""},null,null,null,null,null,null,null,null,null,null,null,null,"1 % Fläche  Dauergrünland",{"$f":"Stammdaten!B10*0.01","v":0},"1. Prozent",{"$f":"Prämienübersicht!H33","v":900}]
[null,"Fläche in ha",null,null,null,null,null,null,null,null,null,null,null,{"$f":"IF(C16<S15,0,IF(C16>S15*6,S15*U15+S15*2*U16+S15*3*U17,IF(C16>S15*3,S15*U15+S15*2*U16+(C16-S15*3)*U17,IF(C16>S15,S15*U15+(C16-S15)*U16,C16*U15))))","v":0},null,null,null,null,null,"2.-3. Prozent",{"$f":"Prämienübersicht!H34","v":400}]
[null,null,null,null,null,null,null,null,null,null,null,null,null,null,null,null,null,null,null,"4.-6. Prozent",{"$f":"Prämienübersicht!H35","v":200}]
["Ökoregelung 2","Anbau vielfältiger Kulturen","Nein",{"$f":"Prämienübersicht!H36","v":60}]
[null,"Beihilfefähige Fläche in ha",{"$f":"Stammdaten!B6-IF(C7=\"Ja\",Ökoregelungen!C10,0)-IF(AUKM!B8=\"JA\",AUKM!B9,0)-IF(AUKM!B10=\"Ja\",AUKM!B11+AUKM!B12,0)-IF(AUKM!B54=\"Ja\",AUKM!B55,0)-IF(AUKM!B35=\"Ja\",AUKM!B36,0)","v":0},null,null,null,null,null,null,null,null,null,null,{"$f":"C19*Prämienübersicht!B17","v":0}]
[]
["Ökoregelung 3","Beibehaltung der agroforstlichen Bewirtschaftungsweise","Nein",{"$f":"Prämienübersicht!H37","v":200}]
[null,"Fläche der Agroforststreifen in ha",null,null,{"$f":"IF(C21=\"Ja\",\"Bitte beachten Sie die Voraussetzungen für die Streifenbreite aus den Ökoregelungsbeschreibungen!\",\"\")","v":""},null,null,null,null,null,null,null,null,{"$f":"C22*Prämienübersicht!B18","v":0}]
[]
["Ökoregelung 4","Extensivierung des gesamten Dauergrünlands","Nein",{"$f":"Prämienübersicht!H38","v":100},null,null,null,null,null,null,null,null,null,{"$f":"Stammdaten!B10*Prämienübersicht!B19","v":0}]
[]
["Ökoregelung 5","Nachweis von mindestens vier regionalen Kennarten","Nein",{"$f":"Prämienübersicht!H39","v":225},{"$f":"IF(C26=\"Ja\",\"Bitte beachten Sie: Flächen im Vertragsnaturschutz Kennarten sind nicht mit der ÖR5 kombinierbar!\",\"\")","v":""}]
[null,"Fläche an Kennarten in ha",null,null,null,null,null,null,null,null,null,null,null,{"$f":"C27*Prämienübersicht!B20","v":0}]
[]
["Ökoregelung 6","Verzicht auf chemisch-synthetische Pflanzenschutzmittel","Nein",{"$f":"Prämienübersicht!H41&\" € - \"&Prämienübersicht!H40&\" €\"","v":"50 € - 150 €"}]
["6a","Fläche an Sommerungen in ha",null,null,null,null,null,null,null,null,null,null,null,{"$f":"C30*Prämienübersicht!H40","v":0}]
["6b","Fläche an Ackerfutter in ha",null,null,null,null,null,null,null,null,null,null,null,{"$f":"C31*Prämienübersicht!H41","v":0}]
[]
["Ökoregelung 7","Landwirtschaftliche Flächen in Natura 2000-Gebieten","Nein",{"$f":"Prämienübersicht!H42","v":40}]
[null,"Flächen in Natura 2000-Gebieten in ha",null,null,null,null,null,null,null,null,null,null,null,{"$f":"C34*Prämienübersicht!B22","v":0}]

{"sheet":"Prämienübersicht","index":4,"n_rows":46,"n_cols":24,"rows_kept":46,"cut":false,"hidden":false,"merged":[]}
["Prämienübersicht "]
[]
[{"$f":"Stammdaten!B3","v":"Mustermann"}]
[{"$f":"Stammdaten!B4","v":"Bad Kreuznach"}]
[]
["1. Säule"]
[null,"je ha","je Betrieb"]
["Basisprämie",{"$f":"H23","v":151.97},{"$f":"B8*Stammdaten!B13","v":0}]
["Umverteilungsprämie",{"$f":"\"0-40 ha \"&H24&\" €\"&\"; 41-60 ha \"&H25&\" €\"","v":"0-40 ha 67,23 €; 41-60 ha 40,34 €"},{"$f":"IF(Stammdaten!B13<=40,Stammdaten!B13*H24,IF(Stammdaten!B13<=60,(Stammdaten!B13-H25)*40+2800,3600))","v":0},null,null,"Berechnungsjahr"]
["Junglandwirteprämie",{"$f":"H26","v":134.08000000000001},{"$f":"IF(Stammdaten!B17=\"Ja\",IF(Stammdaten!B13<=120,Stammdaten!B13*134,16080),0)","v":0},null,null,{"$f":"Stammdaten!B2","v":2025},null,null,null,null,null,null,null,null,null,null,"VN Weinberg",{"$f":"IF(AUKM!B59=\"JA\",1,IF(AUKM!B62=\"Ja\",1,0))","v":0}]
["Ausgleichszulage",{"$f":"H27","v":25},{"$f":"IF(Stammdaten!B15=\"Komplett\",Stammdaten!B13*Prämienübersicht!B11,IF(Stammdaten!B15=\"Teilweise\",Stammdaten!B16*Prämienübersicht!B11,0))","v":0},null,null,{"$f":"IF(F10=2023,2,IF(F10=2024,3,IF(F10=2025,4,IF(F10=2026,5,IF(F10=2027,6,2)))))","v":4},null,null,null,null,null,null,null,null,null,null,"Ökoacker",{"$f":"((IF((Stammdaten!B6+Stammdaten!B7)>Stammdaten!B7,(Stammdaten!B6-Stammdaten!B7),Stammdaten!B6)-(Stammdaten!B6*0.04))*Prämienübersicht!G13)-IF(Stammdaten!B19=\"Ja\",Prämienübersicht!C21,0)-(IF(AUKM!B8=\"Ja\",AUKM!B9,0)*Prämienübersicht!G13)-(IF(AUKM!B10=\"Ja\",SUM(AUKM!B11:'AUKM'!B12),0)*Prämienübersicht!G13)-IF(AUKM!B51=\"Ja\",AUKM!B52*Prämienübersicht!G13,0)-IF(AUKM!B54=\"Ja\",AUKM!B55*Prämienübersicht!G13,0)-IF(AUKM!B35=\"Ja\",AUKM!B36*Prämienübersicht!G13,0)","v":0}]
["Ökoregelungen"]
["Ökoregelung 1a - Stilllegung",{"$f":"Prämienübersicht!H28&\" € (1.%), \"&Prämienübersicht!H29&\" € (2. %), \"&Prämienübersicht!H30&\" € (3.-8%)\"","v":"1300 € (1.%), 500 € (2. %), 300 € (3.-8%)"},{"$f":"IFERROR(Ökoregelungen!N10,0)","v":0},null,null,"Ackerbau",{"$f":"IF(Stammdaten!$B$19=\"Ja\",IF(Stammdaten!$B$20=\"Ja\",423,242),0)","v":0},{"$f":"IF(R11<0,0,R11)","v":0}]
["Ökoregelung 1b - Blühflächen-Top-Up auf 1a",{"$f":"H31","v":200},{"$f":"IFERROR(Ökoregelungen!N11,0)","v":0},null,null,"Gemüsebau",{"$f":"IF(Stammdaten!$B$19=\"Ja\",485,0)","v":0},{"$f":"G14*Stammdaten!B7","v":0},null,null,null,null,null,null,null,null,"Ökoregelung 4 beantragt?"]
["Ökoregelung 1c - Blühflächen in DK und AF",{"$f":"H32","v":200},{"$f":"IF(Ökoregelungen!C13=\"Ja\",Ökoregelungen!C14*Ökoregelungen!N14,0)","v":0},null,null,"Grünland",{"$f":"IF(Stammdaten!$B$19=\"Ja\",IF(Stammdaten!$B$20=\"Ja\",Q15,R15),0)","v":0},{"$f":"(G15*Stammdaten!B10)-IF(AUKM!B23=\"Ja\",AUKM!B24*Prämienübersicht!G15,0)-IF(AUKM!B29=\"Ja\",AUKM!B30*Prämienübersicht!G15,0)-IF(AUKM!B41=\"Ja\",AUKM!B42*Prämienübersicht!G15,0)-IF(AUKM!B45=\"Ja\",AUKM!B46*Prämienübersicht!G15,0)","v":0},null,null,null,null,null,null,null,null,{"$f":"IF(Ökoregelungen!C24=\"Ja\",423,473)","v":473},{"$f":"IF(Ökoregelungen!C24=\"Ja\",169,219)","v":219},null,423,169]
["Ökoregelung 1d - Altgrasstreifen",{"$f":"Prämienübersicht!H33&\" € (1.%), \"&Prämienübersicht!H34&\" € (2. -3.%), \"&Prämienübersicht!H35&\" € (4.-6-%)\"","v":"900 € (1.%), 400 € (2. -3.%), 200 € (4.-6-%)"},{"$f":"IF(Ökoregelungen!C15=\"Ja\",Ökoregelungen!N16,0)","v":0},null,null,"Weinbau",{"$f":"IF(Stammdaten!$B$19=\"Ja\",IF(Stammdaten!$B$20=\"Ja\",1250,1000),0)","v":0},{"$f":"IF(SUM(AUKM!B60+AUKM!B63+AUKM!B74+AUKM!B75)<Stammdaten!B11,G16*(Stammdaten!B11-IF(Prämienübersicht!R10=1,(AUKM!B60+AUKM!B63),0)-IF(AUKM!B73=\"Ja\",(AUKM!B74+AUKM!B75),0)),0)","v":0}]
["Ökoregelung 2 - Vielfältige Kulturen",{"$f":"H36","v":60},{"$f":"IF(Ökoregelungen!C18=\"Ja\",IF(Ökoregelungen!C19>0,Ökoregelungen!N19,0),0)","v":0},null,null,"Obstbau",{"$f":"IF(Stammdaten!$B$19=\"Ja\",IF(Stammdaten!$B$20=\"Ja\",1250,1000),0)","v":0},{"$f":"G17*Stammdaten!B12","v":0}]
["Ökoregelung 3 - Beibehaltung von Agroforst",{"$f":"H37","v":200},{"$f":"IF(Ökoregelungen!C21=\"Ja\",Ökoregelungen!N22,0)","v":0},null,null,"Transaktionskosten",{"$f":"IF(Stammdaten!B19=\"Ja\",40,0)","v":0},{"$f":"IF(Stammdaten!B19=\"NEIN\",0,IF(Stammdaten!B13<15,Stammdaten!B13*40,600))","v":0}]
["Ökoregelung 4 - Extensivierung des DGL",{"$f":"H38","v":100},{"$f":"IF(Ökoregelungen!C24=\"Ja\",Ökoregelungen!N24,0)","v":0}]
["Ökoregelung 5 - Nachweis von 4 Kennarten",{"$f":"H39","v":225},{"$f":"IF(Ökoregelungen!C26=\"Ja\",Ökoregelungen!N27,0)","v":0}]
["Ökoregelung 6 - Verzicht auf chem.-synth. PSM",{"$f":"Prämienübersicht!H41&\" € - \"&Prämienübersicht!H40&\" €\"","v":"50 € - 150 €"},{"$f":"IF(Ökoregelungen!C29=\"Ja\",Ökoregelungen!N30+Ökoregelungen!N31,0)","v":0},null,null,null,"Prämiensätze nach GAP-Strategieplan",null,"Prämiensätze nach GAP-Strategieplan","Jahr"]
["Ökoregelung 7 - Natura2000-Flächen",{"$f":"H42","v":40},{"$f":"IF(Ökoregelungen!C33=\"Ja\",Ökoregelungen!N34,0)","v":0},null,null,null,"Maßnahme","Auswahljahr","Maßnahme",2023,2024,2025,2026,2027]
["Gekoppelte Einkommensstützungen","je Tier",null,null,null,null,"Einkommengrundstüzung",{"$f":"VLOOKUP(G23,$I$23:$N$44,$F$11,FALSE)","v":151.97},"Einkommengrundstüzung",{"$f":"Prämiensätze!B3","v":156.56},{"$f":"Prämiensätze!C3","v":154.72},{"$f":"Prämiensätze!D3","v":151.97},{"$f":"Prämiensätze!E3","v":147.38},{"$f":"Prämiensätze!F3","v":147.38},null,null,130,null,null,15]
["Rind- und Kalbsfleisch",{"$f":"H43","v":87.72},{"$f":"IF(Stammdaten!$B$22=\"Nein\",0,IF(Stammdaten!B23>=3,Stammdaten!B23*B24,0))","v":0},null,null,null,"Umverteilung 0-40",67.23,"Umverteilung 0-40",{"$f":"Prämiensätze!B4","v":69.16},{"$f":"Prämiensätze!C4","v":68.39},{"$f":"Prämiensätze!D4","v":67.23},{"$f":"Prämiensätze!E4","v":65.31},{"$f":"Prämiensätze!F4","v":65.31},null,null,null,"nur ÖR4","Nur Öko","Öko und ÖR4"]
["Schafs-und Ziegenfleisch",{"$f":"H44","v":39},{"$f":"IF(Stammdaten!$B$22=\"Nein\",0,IF(Stammdaten!B24>=6,Stammdaten!B24*B25,0))","v":0},null,null,null,"Umverteilung 41-60",40.340000000000003,"Umverteilung 41-60",{"$f":"Prämiensätze!B5","v":41.49},{"$f":"Prämiensätze!C5","v":41.03},{"$f":"Prämiensätze!D5","v":40.340000000000003},{"$f":"Prämiensätze!E5","v":39.19},{"$f":"Prämiensätze!F5","v":39.19},null,null,"Flächenabzug:",{"$f":"IF(Stammdaten!B19=\"Ja\",0,IF(Ökoregelungen!C24=\"Ja\",1,0))","v":0},{"$f":"IF(Stammdaten!B19=\"Ja\",IF(Ökoregelungen!C24=\"Nein\",1,0),0)","v":0},{"$f":"IF(Stammdaten!B19=\"Ja\",IF(Ökoregelungen!C24=\"Ja\",1,0),0)","v":0},null,{"$f":"IF(T25=1,1,IF(S25=1,1,IF(R25=1,1,0)))","v":0}]
["GESAMT 1. SÄULE",null,{"$f":"SUM(C8:C25)","v":0},null,null,null,"Junglandwirte",134.08000000000001,"Junglandwirte",{"$f":"Prämiensätze!B6","v":134},{"$f":"Prämiensätze!C6","v":134.04},{"$f":"Prämiensätze!D6","v":134.08000000000001},{"$f":"Prämiensätze!E6","v":134.12},{"$f":"Prämiensätze!F6","v":134.16},null,null,null,{"$f":"(AUKM!B24+AUKM!B30)*115","v":0},{"$f":"(AUKM!B24+AUKM!B30)*G15","v":0},{"$f":"(AUKM!B24+AUKM!B30)*(G15+65)","v":0}]
[null,null,null,null,null,null,"Ausgleichszulage",25,"Ausgleichszulage",{"$f":"Prämiensätze!B7","v":25},{"$f":"Prämiensätze!C7","v":25},{"$f":"Prämiensätze!D7","v":25},{"$f":"Prämiensätze!E7","v":25},{"$f":"Prämiensätze!F7","v":25},null,null,null,{"$f":"IF($X$28<R26,0,$X$28-R26)","v":0},{"$f":"IF($X$28<S26,0,$X$28-S26)","v":0},0]
["2.Säule",null,null,null,null,null,"Ökoregelung 1a - Stilllegung über GLÖZ 8 ",1300,"Ökoregelung 1a - Stilllegung über GLÖZ 8 ",{"$f":"Prämiensätze!B8","v":1300},{"$f":"Prämiensätze!C8","v":1300},{"$f":"Prämiensätze!D8","v":1300},{"$f":"Prämiensätze!E8","v":1300},{"$f":"Prämiensätze!F8","v":1300},null,"VNG","MW",{"$f":"AUKM!B24*AUKM!C23+AUKM!B25*AUKM!C25+AUKM!B26*AUKM!C26+AUKM!B27*AUKM!C27+AUKM!B28*AUKM!C28","v":0},"GA",{"$f":"AUKM!B30*AUKM!C29+AUKM!B31*AUKM!C31+AUKM!B32*AUKM!C32+AUKM!B33*AUKM!C33+AUKM!B34*AUKM!C34","v":0},"UAAG",{"$f":"AUKM!B36*AUKM!C35+AUKM!B37*AUKM!C37+AUKM!B38*AUKM!C38","v":0},"Summe",{"$f":"SUM(IF(AUKM!B23=\"Ja\",Prämienübersicht!R28,0),IF(AUKM!B29=\"Ja\",Prämienübersicht!T28,0),IF(AUKM!B35=\"Ja\",Prämienübersicht!V28,0))","v":0}]
[null,"je ha","je Betrieb",null,null,null,"a",500,"a",{"$f":"Prämiensätze!B9","v":500},{"$f":"Prämiensätze!C9","v":500},{"$f":"Prämiensätze!D9","v":500},{"$f":"Prämiensätze!E9","v":500},{"$f":"Prämiensätze!F9","v":500},null,"ÖR4 Abzug",null,{"$f":"IF(Ökoregelungen!C24=\"Ja\",IF(AUKM!B23=\"Ja\",AUKM!B24*115,0),0)","v":0},null,{"$f":"IF(Ökoregelungen!C24=\"Ja\",IF(AUKM!B29=\"Ja\",AUKM!B30*115,0),0)","v":0}]
["Ökoprämie","variiert",{"$f":"SUM(H13:H18)","v":0},null,null,null,"b",300,"b",{"$f":"Prämiensätze!B10","v":300},{"$f":"Prämiensätze!C10","v":300},{"$f":"Prämiensätze!D10","v":300},{"$f":"Prämiensätze!E10","v":300},{"$f":"Prämiensätze!F10","v":300},null,"Auszahlung",null,{"$f":"R28-R29","v":0},null,{"$f":"T28-T29","v":0}]
["Vielfältige Kulturen im Ackerbau",{"$f":"AUKM!C14","v":45},{"$f":"IF(Stammdaten!B19=\"Nein\",(IF(AUKM!B14=\"Ja\",AUKM!C14*Ökoregelungen!C19,0)),0)","v":0},null,null,null,"Ökoregelung 1b - Blühflächen-Top-Up auf 1a",200,"Ökoregelung 1b - Blühflächen-Top-Up auf 1a",{"$f":"Prämiensätze!B11","v":150},{"$f":"Prämiensätze!C11","v":200},{"$f":"Prämiensätze!D11","v":200},{"$f":"Prämiensätze!E11","v":200},{"$f":"Prämiensätze!F11","v":200},null,"VNK","MW",{"$f":"AUKM!B42*AUKM!C41+AUKM!B43*AUKM!C43+AUKM!B44*AUKM!C44","v":0},"GA",{"$f":"AUKM!B46*AUKM!C45+AUKM!B47*AUKM!C47+AUKM!B48*AUKM!C48","v":0},null,null,"Summe",{"$f":"SUM(IF(AUKM!B41=\"Ja\",Prämienübersicht!R31,0),IF(AUKM!B45=\"Ja\",Prämienübersicht!T31,0))","v":0}]
["Saum- und Bandstrukturen","variiert",{"$f":"IF(AUKM!B10=\"Ja\",IF(AUKM!B11+AUKM!B12<=Stammdaten!B6*0.2,(AUKM!B11*AUKM!C11+AUKM!B12*AUKM!C12),0),0)","v":0},null,null,null,"Ökoregelung 1c - Blühflächen in DK und AF",200,"Ökoregelung 1c - Blühflächen in DK und AF",{"$f":"Prämiensätze!B12","v":150},{"$f":"Prämiensätze!C12","v":200},{"$f":"Prämiensätze!D12","v":200},{"$f":"Prämiensätze!E12","v":200},{"$f":"Prämiensätze!F12","v":200},null,null,"Abzug Öko",{"$f":"(AUKM!B42+AUKM!B46)*Prämienübersicht!G15","v":0}]
["Extensive Grünlandbewirtschaftung",80,{"$f":"IF(Stammdaten!B19=\"Nein\",(IF(AUKM!B13=\"Ja\",P39*AUKM!C13,0)),0)","v":0},null,null,null,"Ökoregelung 1d - Altgrasstreifen",900,"Ökoregelung 1d - Altgrasstreifen",{"$f":"Prämiensätze!B13","v":900},{"$f":"Prämiensätze!C13","v":900},{"$f":"Prämiensätze!D13","v":900},{"$f":"Prämiensätze!E13","v":900},{"$f":"Prämiensätze!F13","v":900},null,"VN Acker","EG",{"$f":"AUKM!B52*AUKM!C51+AUKM!B53*AUKM!C53","v":0},"AMB",{"$f":"AUKM!B55*AUKM!C54+AUKM!B56*AUKM!C56","v":0},"Summe",{"$f":"SUM(IF(AUKM!B51=\"Ja\",Prämienübersicht!R33,0),IF(AUKM!B54=\"Ja\",Prämienübersicht!T33,0))","v":0}]
["Umwandlung Acker in Grünland",445,{"$f":"IF(AUKM!B8=\"Ja\",AUKM!B9*AUKM!C8,0)","v":0},null,null,null,"c",400,"c",{"$f":"Prämiensätze!B14","v":400},{"$f":"Prämiensätze!C14","v":400},{"$f":"Prämiensätze!D14","v":400},{"$f":"Prämiensätze!E14","v":400},{"$f":"Prämiensätze!F14","v":400},null,{"$f":"IF(AUKM!B51=\"Ja\",1,IF(AUKM!B54=\"Ja\",1,0))","v":0},"Abzug Öko",{"$f":"((IF(AUKM!B51=\"Ja\",AUKM!B52,0))+(IF(AUKM!B54=\"Ja\",AUKM!B55,0)))*G13","v":0}]
["Grünlandbew. von Talauen in der Südpfalz",130,{"$f":"IF(Stammdaten!B19=\"Nein\",(IF(AUKM!B15=\"Ja\",IF(Ökoregelungen!C24=\"Ja\",Prämienübersicht!T23*AUKM!B16,Prämienübersicht!Q23*AUKM!B16),0)),0)","v":0},null,null,null,"d",200,"d",{"$f":"Prämiensätze!B15","v":200},{"$f":"Prämiensätze!C15","v":200},{"$f":"Prämiensätze!D15","v":200},{"$f":"Prämiensätze!E15","v":200},{"$f":"Prämiensätze!F15","v":200}]
["Alternative Pflanzenschutzverfahren","variiert",{"$f":"SUM(IF(AUKM!B17=\"Ja\",IF(Stammdaten!B19=\"Nein\",AUKM!C17*AUKM!B18,0),0),IF(AUKM!B80=\"Ja\",IF(Stammdaten!B19=\"Nein\",AUKM!B81*AUKM!C80,0),0))","v":0},null,null,null,"Ökoregelung 2 - Vielfältige Kulturen",60,"Ökoregelung 2 - Vielfältige Kulturen",{"$f":"Prämiensätze!B16","v":45},{"$f":"Prämiensätze!C16","v":60},{"$f":"Prämiensätze!D16","v":60},{"$f":"Prämiensätze!E16","v":60},{"$f":"Prämiensätze!F16","v":60}]
["Vertragsnaturschutz Grünland","variiert",{"$f":"(IF(AUKM!B23=\"Ja\",Prämienübersicht!R30,0))+IF(AUKM!B29=\"Ja\",Prämienübersicht!T30,0)+IF(AUKM!B35=\"Ja\",V28,0)","v":0},null,null,null,"Ökoregelung 3 - Beibehaltung von Agroforst",200,"Ökoregelung 3 - Beibehaltung von Agroforst",{"$f":"Prämiensätze!B17","v":60},{"$f":"Prämiensätze!C17","v":200},{"$f":"Prämiensätze!D17","v":200},{"$f":"Prämiensätze!E17","v":200},{"$f":"Prämiensätze!F17","v":200}]
["Vertragsnaturschutz Kennarten","variiert",{"$f":"X31","v":0},null,null,null,"Ökoregelung 4 - Extensivierung des DGL",100,"Ökoregelung 4 - Extensivierung des DGL",{"$f":"Prämiensätze!B18","v":115},{"$f":"Prämiensätze!C18","v":100},{"$f":"Prämiensätze!D18","v":100},{"$f":"Prämiensätze!E18","v":100},{"$f":"Prämiensätze!F18","v":100},null,"EG","VNG","VNK"]
["Vertragsnaturschutz Acker","variiert",{"$f":"V33","v":0},null,null,null,"Ökoregelung 5 - Nachweis von 4 Kennarten",225,"Ökoregelung 5 - Nachweis von 4 Kennarten",{"$f":"Prämiensätze!B19","v":240},{"$f":"Prämiensätze!C19","v":240},{"$f":"Prämiensätze!D19","v":225},{"$f":"Prämiensätze!E19","v":210},{"$f":"Prämiensätze!F19","v":210},null,{"$f":"Stammdaten!B10-Q39-Q40-R39-R40","v":0},{"$f":"IF(AUKM!B23=\"Ja\",AUKM!B24,0)","v":0},{"$f":"IF(AUKM!B41=\"Ja\",AUKM!B42,0)","v":0}]
["Vertragsnaturschutz Weinberg","variiert",{"$f":"SUM(IF(AUKM!B59=\"Ja\",AUKM!B60*AUKM!C59+AUKM!B61*AUKM!C61,0),(IF(AUKM!B62=\"Ja\",AUKM!B63*AUKM!C62+AUKM!B64*AUKM!C64,0)))","v":0},null,null,null,"Ökoregelung 6 - Verzicht auf chem.-synth. PSM",150,"Ökoregelung 6 - Verzicht auf chem.-synth. PSM",{"$f":"Prämiensätze!B20","v":130},{"$f":"Prämiensätze!C20","v":150},{"$f":"Prämiensätze!D20","v":150},{"$f":"Prämiensätze!E20","v":150},{"$f":"Prämiensätze!F20","v":150},null,null,{"$f":"IF(AUKM!B29=\"Ja\",AUKM!B30,0)","v":0},{"$f":"IF(AUKM!B45=\"Ja\",AUKM!B46,0)","v":0}]
["Vertragsnaturschutz Streubost","variiert",{"$f":"IF(AUKM!B66=\"Ja\",AUKM!B67*AUKM!C67+AUKM!C68*AUKM!B68+AUKM!C69*AUKM!B69,0)","v":0},null,null,null,"e",50,"e",{"$f":"Prämiensätze!B21","v":50},{"$f":"Prämiensätze!C21","v":50},{"$f":"Prämiensätze!D21","v":50},{"$f":"Prämiensätze!E21","v":50},{"$f":"Prämiensätze!F21","v":50}]
["Umweltschonende Steil- und Steilstlagenbew.","variiert",{"$f":"IF(AUKM!B73=\"Ja\",IF(AUKM!B74+AUKM!B75>Stammdaten!B11,0,AUKM!B74*AUKM!C74+AUKM!B75*AUKM!C75),0)","v":0},null,null,null,"Ökoregelung 7 - Natura2000-Flächen",40,"Ökoregelung 7 - Natura2000-Flächen",{"$f":"Prämiensätze!B22","v":40},{"$f":"Prämiensätze!C22","v":40},{"$f":"Prämiensätze!D22","v":40},{"$f":"Prämiensätze!E22","v":40},{"$f":"Prämiensätze!F22","v":40}]
["Biotechnische Pflanzenschutzverfahren",80,{"$f":"IF(IF(AUKM!B76=\"Ja\",(Stammdaten!B11-IF(AUKM!B59=\"Ja\",AUKM!B60,0)-IF(AUKM!B62=\"Ja\",AUKM!B63,0))*AUKM!C76,0)<=0,0,IF(AUKM!B76=\"Ja\",(Stammdaten!B11-IF(AUKM!B59=\"Ja\",AUKM!B60,0)-IF(AUKM!B62=\"Ja\",AUKM!B63,0))*AUKM!C76,0))","v":0},null,null,null,"Rind- und Kalbsfleisch",87.72,"Rind- und Kalbsfleisch",{"$f":"Prämiensätze!B23","v":77.930000000000007},{"$f":"Prämiensätze!C23","v":77.06},{"$f":"Prämiensätze!D23","v":87.72},{"$f":"Prämiensätze!E23","v":85.22},{"$f":"Prämiensätze!F23","v":85.22}]
["GESAMT 2. SÄULE",null,{"$f":"SUM(C30,C31:C43)","v":0},null,null,null,"Schafs-und Ziegenfleisch",39,"Schafs-und Ziegenfleisch",{"$f":"Prämiensätze!B24","v":34.83},{"$f":"Prämiensätze!C24","v":34.44},{"$f":"Prämiensätze!D24","v":39},{"$f":"Prämiensätze!E24","v":37.89},{"$f":"Prämiensätze!F24","v":37.89}]
[]
["GESAMTPRÄMIE",null,{"$f":"C44+C26","v":0}]

{"sheet":"Prämiensätze","index":5,"n_rows":24,"n_cols":6,"rows_kept":24,"cut":false,"hidden":true,"merged":[]}
["Prämiensätze nach GAP-Strategieplan","Jahr","Stand: Oktober 2024"]
["Maßnahme",2023,2024,2025,2026,2027]
["Einkommengrundstüzung",156.56,154.72,151.97,147.38,147.38]
["Umverteilung 0-40",69.16,68.39,67.23,65.31,65.31]
["Umverteilung 41-60",41.49,41.03,40.340000000000003,39.19,39.19]
["Junglandwirte",134,134.04,134.08000000000001,134.12,134.16]
["Ausgleichszulage",25,25,25,25,25]
["Ökoregelung 1a - Stilllegung über GLÖZ 8 ",1300,1300,1300,1300,1300]
[null,500,500,500,500,500]
[null,300,300,300,300,300]
["Ökoregelung 1b - Blühflächen-Top-Up auf 1a",150,200,200,200,200]
["Ökoregelung 1c - Blühflächen in DK und AF",150,200,200,200,200]
["Ökoregelung 1d - Altgrasstreifen",900,900,900,900,900]
[null,400,400,400,400,400]
[null,200,200,200,200,200]
["Ökoregelung 2 - Vielfältige Kulturen",45,60,60,60,60]
["Ökoregelung 3 - Beibehaltung von Agroforst",60,200,200,200,200]
["Ökoregelung 4 - Extensivierung des DGL",115,100,100,100,100]
["Ökoregelung 5 - Nachweis von 4 Kennarten",240,240,225,210,210]
["Ökoregelung 6 - Verzicht auf chem.-synth. PSM",130,150,150,150,150]
[null,50,50,50,50,50]
["Ökoregelung 7 - Natura2000-Flächen",40,40,40,40,40]
["Rind- und Kalbsfleisch",77.930000000000007,77.06,87.72,85.22,85.22]
["Schafs-und Ziegenfleisch",34.83,34.44,39,37.89,37.89]